[Event "*** Titled Tuesday Blitz"]
[Site "Chess.com"]
[Date "2021.02.09"]
[Round "7"]
[White "DonPreuss"]
[Black "boasovietica"]
[Result "1-0"]
[WhiteElo "2257"]
[BlackElo "2447"]
[TimeControl "180+1"]
[EndTime "11:19:08 PST"]
[Termination "DonPreuss won on time"]

1. d4 {[%clk 0:02:58.7]} 1... Nf6 {[%clk 0:02:59.6]} 2. Nc3 {[%clk 0:02:58.8]}
2... d5 {[%clk 0:02:54.3]} 3. e4 {[%clk 0:02:59.3]} 3... dxe4 {[%clk 0:02:54]}
4. f3 {[%clk 0:02:59.7]} 4... exf3 {[%clk 0:02:48.7]} 5. Nxf3 {[%clk 0:02:59.5]}
5... g6 {[%clk 0:02:48.7]} 6. Bd3 {[%clk 0:02:50.9]} 6... Bg7 {[%clk 0:02:48.5]}
7. O-O {[%clk 0:02:51]} 7... O-O {[%clk 0:02:48.8]} 8. Qe1 {[%clk 0:02:51.3]}
8... Nc6 {[%clk 0:02:29.3]} 9. Qh4 {[%clk 0:02:34.6]} 9... Bg4 {[%clk
0:02:10.1]} 10. Ne2 {[%clk 0:02:27.8]} 10... Bxf3 {[%clk 0:01:49]} 11. Rxf3
{[%clk 0:02:25]} 11... Nd5 {[%clk 0:01:48.5]} 12. c3 {[%clk 0:02:03.7]} 12... e5
{[%clk 0:01:38]} 13. Bg5 {[%clk 0:02:03.7]} 13... f6 {[%clk 0:01:35.5]} 14. Bh6
{[%clk 0:02:04.1]} 14... exd4 {[%clk 0:01:31.6]} 15. cxd4 {[%clk 0:01:59.7]}
15... Bxh6 {[%clk 0:01:09.2]} 16. Qxh6 {[%clk 0:01:58.9]} 16... Rf7 {[%clk
0:01:03.9]} 17. Bc4 {[%clk 0:01:31.5]} 17... Nce7 {[%clk 0:00:57.9]} 18. Raf1
{[%clk 0:01:17.2]} 18... Qf8 {[%clk 0:00:53.8]} 19. Qh3 {[%clk 0:01:10.6]} 19...
c6 {[%clk 0:00:53.8]} 20. Nf4 {[%clk 0:01:09.4]} 20... Nxf4 {[%clk 0:00:29.5]}
21. Bxf7+ {[%clk 0:01:07.9]} 21... Qxf7 {[%clk 0:00:30.4]} 22. Rxf4 {[%clk
0:01:06.6]} 22... Nd5 {[%clk 0:00:29.7]} 23. R4f3 {[%clk 0:01:05.2]} 23... Re8
{[%clk 0:00:28.8]} 24. Qg3 {[%clk 0:00:58.5]} 24... Qe7 {[%clk 0:00:27.7]} 25.
h3 {[%clk 0:00:54.7]} 25... Qb4 {[%clk 0:00:26.8]} 26. Rd3 {[%clk 0:00:31.8]}
26... Qxb2 {[%clk 0:00:26.6]} 27. Qd6 {[%clk 0:00:28.7]} 27... Re2 {[%clk
0:00:25.1]} 28. Rg3 {[%clk 0:00:24.8]} 28... Qxd4+ {[%clk 0:00:24]} 29. Kh1
{[%clk 0:00:24.5]} 29... Qe5 {[%clk 0:00:23.5]} 30. Qd8+ {[%clk 0:00:23.3]}
30... Qe8 {[%clk 0:00:22.3]} 31. Qd6 {[%clk 0:00:19.7]} 31... Qe7 {[%clk
0:00:22.1]} 32. Qb8+ {[%clk 0:00:19.5]} 32... Kg7 {[%clk 0:00:21.6]} 33. Rb3
{[%clk 0:00:19]} 33... Re6 {[%clk 0:00:19.9]} 34. Rxb7 {[%clk 0:00:18.3]} 34...
Kh6 {[%clk 0:00:05.9]} 35. Rxe7 {[%clk 0:00:17.8]} 35... Nxe7 {[%clk 0:00:06.2]}
36. Qf4+ {[%clk 0:00:15.6]} 36... g5 {[%clk 0:00:05.8]} 37. Qc7 {[%clk
0:00:14.4]} 37... Kg6 {[%clk 0:00:05.8]} 38. Qxa7 {[%clk 0:00:14]} 38... Nf5
{[%clk 0:00:06.1]} 39. Rxf5 {[%clk 0:00:10.6]} 39... Kxf5 {[%clk 0:00:05.7]} 40.
Qxh7+ {[%clk 0:00:11.1]} 40... Kf4 {[%clk 0:00:05.6]} 41. Qd3 {[%clk 0:00:10.4]}
41... Re3 {[%clk 0:00:05.1]} 42. Qd6+ {[%clk 0:00:10.5]} 42... Kf5 {[%clk
0:00:03.6]} 43. Qxc6 {[%clk 0:00:10.6]} 43... g4 {[%clk 0:00:04]} 44. hxg4+
{[%clk 0:00:10.3]} 44... Kxg4 {[%clk 0:00:04.4]} 45. Kh2 {[%clk 0:00:10.7]}
45... Re5 {[%clk 0:00:02.3]} 46. a4 {[%clk 0:00:10.5]} 46... Rh5+ {[%clk
0:00:02.2]} 47. Kg1 {[%clk 0:00:10.6]} 47... Kg3 {[%clk 0:00:02.5]} 48. Qf3+
{[%clk 0:00:10.2]} 48... Kh4 {[%clk 0:00:03]} 49. Qxh5+ {[%clk 0:00:10.3]} 49...
Kxh5 {[%clk 0:00:03.5]} 50. a5 {[%clk 0:00:10.9]} 1-0

[Event "*** Titled Tuesday Blitz"]
[Site "Chess.com"]
[Date "2021.02.09"]
[Round "7"]
[White "K_A_S_T_O_R"]
[Black "TST2014"]
[Result "0-1"]
[WhiteElo "2785"]
[BlackElo "2585"]
[TimeControl "180+1"]
[EndTime "11:19:09 PST"]
[Termination "TST2014 won by resignation"]

1. e4 {[%clk 0:03:00.9]} 1... c5 {[%clk 0:02:59.3]} 2. Nf3 {[%clk 0:02:59.9]}
2... d6 {[%clk 0:02:59.3]} 3. d4 {[%clk 0:03:00.4]} 3... cxd4 {[%clk 0:02:57.8]}
4. Nxd4 {[%clk 0:03:01.3]} 4... Nf6 {[%clk 0:02:58.5]} 5. Nc3 {[%clk 0:03:01.8]}
5... Nc6 {[%clk 0:02:59.1]} 6. Bg5 {[%clk 0:03:01.9]} 6... e6 {[%clk 0:02:59.3]}
7. Qd2 {[%clk 0:03:02.2]} 7... a6 {[%clk 0:02:59.7]} 8. O-O-O {[%clk 0:03:02]}
8... Bd7 {[%clk 0:02:59.9]} 9. f4 {[%clk 0:03:01.7]} 9... h6 {[%clk 0:02:58.8]}
10. Bh4 {[%clk 0:03:00.4]} 10... Nxe4 {[%clk 0:02:56]} 11. Qe1 {[%clk
0:03:00.3]} 11... Nf6 {[%clk 0:02:55.6]} 12. Nf5 {[%clk 0:02:59.6]} 12... Qa5
{[%clk 0:02:55.5]} 13. Nxd6+ {[%clk 0:02:58.2]} 13... Bxd6 {[%clk 0:02:56.4]}
14. Rxd6 {[%clk 0:02:57.9]} 14... Qc7 {[%clk 0:02:56.8]} 15. Rd2 {[%clk
0:02:55.9]} 15... O-O-O {[%clk 0:02:54.3]} 16. Bxf6 {[%clk 0:02:50.2]} 16...
gxf6 {[%clk 0:02:53.9]} 17. Qh4 {[%clk 0:02:39.1]} 17... f5 {[%clk 0:02:38.3]}
18. Be2 {[%clk 0:02:38.5]} 18... Nb8 {[%clk 0:01:59.7]} 19. Rhd1 {[%clk
0:02:35.7]} 19... Bc6 {[%clk 0:01:59.2]} 20. Bh5 {[%clk 0:02:35.1]} 20... Rxd2
{[%clk 0:01:18]} 21. Rxd2 {[%clk 0:02:34.2]} 21... Rd8 {[%clk 0:01:18.6]} 22.
Re2 {[%clk 0:02:23.6]} 22... Rd4 {[%clk 0:01:14.1]} 23. g3 {[%clk 0:02:20.8]}
23... b5 {[%clk 0:00:44.1]} 24. Qf6 {[%clk 0:02:17]} 24... Rd7 {[%clk
0:00:43.5]} 25. a3 {[%clk 0:02:14.8]} 25... a5 {[%clk 0:00:42.6]} 26. b3 {[%clk
0:02:10.3]} 26... b4 {[%clk 0:00:39.4]} 27. axb4 {[%clk 0:02:09.9]} 27... axb4
{[%clk 0:00:40.3]} 28. Na2 {[%clk 0:02:10]} 28... Qa5 {[%clk 0:00:35.6]} 29. Qb2
{[%clk 0:01:47.3]} 29... Na6 {[%clk 0:00:33.6]} 30. Re1 {[%clk 0:01:41.6]} 30...
Nc5 {[%clk 0:00:30.6]} 31. Re5 {[%clk 0:01:35.3]} 31... Bd5 {[%clk 0:00:30]} 32.
Kb1 {[%clk 0:01:26.4]} 32... Ra7 {[%clk 0:00:28.2]} 33. Be2 {[%clk 0:00:59.9]}
33... Ne4 {[%clk 0:00:27.6]} 34. Rxe4 {[%clk 0:00:50.2]} 34... Bxe4 {[%clk
0:00:27.4]} 35. Bc4 {[%clk 0:00:50.6]} 35... Rd7 {[%clk 0:00:26.7]} 36. Qc1
{[%clk 0:00:46.7]} 36... Qc5 {[%clk 0:00:25.8]} 37. Qe1 {[%clk 0:00:45.6]} 37...
Bf3 {[%clk 0:00:18.3]} 38. Bd3 {[%clk 0:00:41.1]} 38... Rd4 {[%clk 0:00:16.7]}
39. Nc1 {[%clk 0:00:39]} 39... Be4 {[%clk 0:00:16.9]} 40. Kb2 {[%clk 0:00:39.1]}
40... h5 {[%clk 0:00:11.3]} 41. Ne2 {[%clk 0:00:37.8]} 41... Bxd3 {[%clk
0:00:11]} 42. cxd3 {[%clk 0:00:35.9]} 42... Rxd3 {[%clk 0:00:11.1]} 43. Nc1
{[%clk 0:00:36]} 43... Re3 {[%clk 0:00:10.7]} 44. Qd1 {[%clk 0:00:34.1]} 44...
Rf3 {[%clk 0:00:09.6]} 45. Nd3 {[%clk 0:00:31.5]} 45... Qd4+ {[%clk 0:00:09.6]}
46. Kc2 {[%clk 0:00:31.8]} 46... Re3 {[%clk 0:00:09.8]} 47. Qd2 {[%clk
0:00:30.6]} 47... Qe4 {[%clk 0:00:09.9]} 48. Qd1 {[%clk 0:00:28.5]} 48... f6
{[%clk 0:00:09.9]} 49. h3 {[%clk 0:00:21.5]} 49... Re2+ {[%clk 0:00:09.5]} 50.
Kb1 {[%clk 0:00:20.5]} 50... Re3 {[%clk 0:00:09.1]} 51. Qc2+ {[%clk 0:00:20.6]}
51... Kb8 {[%clk 0:00:08.1]} 52. Nc1 {[%clk 0:00:14.5]} 52... Qxc2+ {[%clk
0:00:08]} 53. Kxc2 {[%clk 0:00:15.4]} 53... Rxg3 {[%clk 0:00:08.2]} 0-1

[Event "*** Titled Tuesday Blitz"]
[Site "Chess.com"]
[Date "2021.02.09"]
[Round "7"]
[White "Meri-Arabidze"]
[Black "MFguimaraes"]
[Result "1-0"]
[WhiteElo "2602"]
[BlackElo "2418"]
[TimeControl "180+1"]
[EndTime "11:19:09 PST"]
[Termination "Meri-Arabidze won by resignation"]

1. d4 {[%clk 0:02:57.8]} 1... f5 {[%clk 0:02:58.9]} 2. Nf3 {[%clk 0:02:55.8]}
2... Nf6 {[%clk 0:02:59]} 3. g3 {[%clk 0:02:56.5]} 3... e6 {[%clk 0:02:57.9]} 4.
Bg2 {[%clk 0:02:57.4]} 4... Be7 {[%clk 0:02:58.6]} 5. O-O {[%clk 0:02:58]} 5...
O-O {[%clk 0:02:59.2]} 6. Nc3 {[%clk 0:02:55.5]} 6... d5 {[%clk 0:02:58.9]} 7.
e3 {[%clk 0:02:50.3]} 7... c5 {[%clk 0:02:58.2]} 8. Ne2 {[%clk 0:02:50.1]} 8...
Ne4 {[%clk 0:02:57.1]} 9. c4 {[%clk 0:02:47.6]} 9... Nc6 {[%clk 0:02:48.1]} 10.
cxd5 {[%clk 0:02:45.2]} 10... exd5 {[%clk 0:02:49]} 11. b3 {[%clk 0:02:44.8]}
11... Be6 {[%clk 0:02:40.3]} 12. Bb2 {[%clk 0:02:44.2]} 12... c4 {[%clk
0:02:39]} 13. Nf4 {[%clk 0:02:34.7]} 13... Bf7 {[%clk 0:02:31.7]} 14. bxc4
{[%clk 0:02:24.7]} 14... dxc4 {[%clk 0:02:29.2]} 15. Rc1 {[%clk 0:02:11.9]}
15... b5 {[%clk 0:02:20]} 16. a3 {[%clk 0:02:09.5]} 16... Na5 {[%clk 0:02:18.4]}
17. Ne5 {[%clk 0:02:05.4]} 17... Nb3 {[%clk 0:02:15.8]} 18. Rc2 {[%clk
0:02:02.3]} 18... Rc8 {[%clk 0:02:02.4]} 19. Nxf7 {[%clk 0:01:35.3]} 19... Rxf7
{[%clk 0:02:00.8]} 20. d5 {[%clk 0:01:30.8]} 20... c3 {[%clk 0:01:52.2]} 21.
Bxe4 {[%clk 0:01:24.8]} 21... fxe4 {[%clk 0:01:43.6]} 22. Rxc3 {[%clk
0:01:22.1]} 22... Rxc3 {[%clk 0:01:42.3]} 23. Bxc3 {[%clk 0:01:23]} 23... Nc5
{[%clk 0:01:34.4]} 24. Qd4 {[%clk 0:01:17.9]} 24... Na4 {[%clk 0:01:26.3]} 25.
Bb4 {[%clk 0:01:11.3]} 25... Bxb4 {[%clk 0:01:26.3]} 26. axb4 {[%clk 0:01:10.7]}
26... Re7 {[%clk 0:01:17.1]} 27. h4 {[%clk 0:01:09.8]} 27... Qd6 {[%clk
0:01:12.1]} 28. Rc1 {[%clk 0:01:08.4]} 28... Nb6 {[%clk 0:00:54.8]} 29. Rc6
{[%clk 0:01:07.9]} 29... Qe5 {[%clk 0:00:42.1]} 30. Qc5 {[%clk 0:00:55.1]} 30...
Nc4 {[%clk 0:00:30.6]} 31. Ne6 {[%clk 0:00:32.4]} 31... Kf7 {[%clk 0:00:17.9]}
32. Ng5+ {[%clk 0:00:29.5]} 32... Kg8 {[%clk 0:00:15.8]} 33. Rc8+ {[%clk
0:00:28.7]} 33... Re8 {[%clk 0:00:16.3]} 34. Ne6 {[%clk 0:00:24]} 34... Rxc8
{[%clk 0:00:14.5]} 35. Qxc8+ {[%clk 0:00:24.9]} 35... Kf7 {[%clk 0:00:15.2]} 36.
Qf8+ {[%clk 0:00:20.7]} 36... Kg6 {[%clk 0:00:15.7]} 37. Nf4+ {[%clk 0:00:21.3]}
37... Kh6 {[%clk 0:00:15.1]} 38. Qd8 {[%clk 0:00:19.7]} 38... Nd2 {[%clk
0:00:13.7]} 39. Kg2 {[%clk 0:00:19.3]} 39... Nf3 {[%clk 0:00:13.7]} 40. d6
{[%clk 0:00:18.4]} 40... g5 {[%clk 0:00:13.6]} 41. Qf8+ {[%clk 0:00:14.9]} 41...
Qg7 {[%clk 0:00:12.2]} 42. Qxg7+ {[%clk 0:00:11.2]} 42... Kxg7 {[%clk
0:00:13.1]} 43. d7 {[%clk 0:00:11.9]} 43... gxh4 {[%clk 0:00:13.3]} 44. d8=Q
{[%clk 0:00:12]} 44... h3+ {[%clk 0:00:14.2]} 45. Nxh3 {[%clk 0:00:11.7]} 45...
Ne5 {[%clk 0:00:14.3]} 46. Qe7+ {[%clk 0:00:11.7]} 46... Nf7 {[%clk 0:00:15.2]}
47. Qxa7 {[%clk 0:00:11.9]} 47... Kg6 {[%clk 0:00:16.1]} 48. Nf4+ {[%clk
0:00:12.3]} 48... Kf6 {[%clk 0:00:16.1]} 49. Nd5+ {[%clk 0:00:13.2]} 49... Ke5
{[%clk 0:00:16.3]} 50. Nc3 {[%clk 0:00:13.7]} 50... h5 {[%clk 0:00:16.8]} 51.
Qxf7 {[%clk 0:00:13.6]} 51... h4 {[%clk 0:00:17.7]} 52. Qh5+ {[%clk 0:00:13.7]}
52... Kf6 {[%clk 0:00:17.3]} 53. Qxh4+ {[%clk 0:00:14.1]} 53... Kf5 {[%clk
0:00:18.2]} 54. Qxe4+ {[%clk 0:00:14.6]} 54... Kg5 {[%clk 0:00:18.3]} 55. Nxb5
{[%clk 0:00:14.8]} 1-0

[Event "*** Titled Tuesday Blitz"]
[Site "Chess.com"]
[Date "2021.02.09"]
[Round "7"]
[White "kuban1991"]
[Black "EugeneRougon"]
[Result "1-0"]
[WhiteElo "2895"]
[BlackElo "2708"]
[TimeControl "180+1"]
[EndTime "11:19:11 PST"]
[Termination "kuban1991 won by resignation"]

1. Nf3 {[%clk 0:03:00.9]} 1... d5 {[%clk 0:02:54.2]} 2. g3 {[%clk 0:03:00.6]}
2... c6 {[%clk 0:02:53]} 3. Bg2 {[%clk 0:03:00.7]} 3... Bg4 {[%clk 0:02:53.5]}
4. Ne5 {[%clk 0:03:00.4]} 4... Bh5 {[%clk 0:02:46.3]} 5. d4 {[%clk 0:03:00.2]}
5... Nd7 {[%clk 0:02:41.4]} 6. O-O {[%clk 0:02:59.2]} 6... Ngf6 {[%clk
0:02:37.5]} 7. c4 {[%clk 0:02:58.3]} 7... e6 {[%clk 0:02:36]} 8. Nc3 {[%clk
0:02:57.8]} 8... Be7 {[%clk 0:02:31.5]} 9. Qb3 {[%clk 0:02:57]} 9... Qb6 {[%clk
0:02:30.3]} 10. Nxd7 {[%clk 0:02:56.8]} 10... Nxd7 {[%clk 0:02:26.3]} 11. e4
{[%clk 0:02:56.6]} 11... dxe4 {[%clk 0:02:19.1]} 12. Nxe4 {[%clk 0:02:57.5]}
12... O-O {[%clk 0:02:18.6]} 13. Be3 {[%clk 0:02:56.9]} 13... Bg6 {[%clk
0:02:08.6]} 14. h3 {[%clk 0:02:52.4]} 14... Rfd8 {[%clk 0:02:08]} 15. Rfc1
{[%clk 0:02:51.6]} 15... Bxe4 {[%clk 0:01:57.3]} 16. Bxe4 {[%clk 0:02:50.7]}
16... Bf6 {[%clk 0:01:58.2]} 17. Rd1 {[%clk 0:02:49.3]} 17... g6 {[%clk
0:01:47]} 18. Kg2 {[%clk 0:02:48.7]} 18... Bg7 {[%clk 0:01:45.9]} 19. Bf3 {[%clk
0:02:45.4]} 19... h5 {[%clk 0:01:30.4]} 20. Qc2 {[%clk 0:02:44.9]} 20... Qc7
{[%clk 0:01:29.2]} 21. Rac1 {[%clk 0:02:39.5]} 21... Rac8 {[%clk 0:01:28.4]} 22.
b4 {[%clk 0:02:36.3]} 22... e5 {[%clk 0:01:22.8]} 23. d5 {[%clk 0:02:31.7]}
23... cxd5 {[%clk 0:01:17.7]} 24. Rxd5 {[%clk 0:02:27.7]} 24... Nb6 {[%clk
0:01:14.5]} 25. Rxd8+ {[%clk 0:02:27.1]} 25... Rxd8 {[%clk 0:01:13.4]} 26. a4
{[%clk 0:02:16.5]} 26... f5 {[%clk 0:01:06.9]} 27. a5 {[%clk 0:02:14.4]} 27...
Nc8 {[%clk 0:00:56.8]} 28. Bd5+ {[%clk 0:02:06.6]} 28... Kh7 {[%clk 0:00:55.9]}
29. Qb3 {[%clk 0:01:54.4]} 29... b6 {[%clk 0:00:49.3]} 30. axb6 {[%clk
0:01:52.1]} 30... axb6 {[%clk 0:00:50.2]} 31. c5 {[%clk 0:01:46.3]} 31... b5
{[%clk 0:00:48.2]} 32. Bg5 {[%clk 0:01:39.7]} 32... Ne7 {[%clk 0:00:42.9]} 33.
Rd1 {[%clk 0:01:26.7]} 33... Rf8 {[%clk 0:00:24]} 34. Be6 {[%clk 0:01:16.7]}
34... Bf6 {[%clk 0:00:20.3]} 35. h4 {[%clk 0:01:02.5]} 35... Bxg5 {[%clk
0:00:16.9]} 36. hxg5 {[%clk 0:01:03.4]} 36... Rd8 {[%clk 0:00:17.8]} 37. Rxd8
{[%clk 0:00:52.7]} 37... Qxd8 {[%clk 0:00:18.7]} 38. Qa2 {[%clk 0:00:51.5]}
38... Nc6 {[%clk 0:00:15.9]} 39. Qa6 {[%clk 0:00:49.8]} 39... Nd4 {[%clk
0:00:13.4]} 40. Qb7+ {[%clk 0:00:48.6]} 40... Kh8 {[%clk 0:00:12.5]} 41. Qf7
{[%clk 0:00:46.6]} 41... Nxe6 {[%clk 0:00:11.6]} 42. Qxe6 {[%clk 0:00:47.5]}
42... Qxg5 {[%clk 0:00:09.5]} 43. c6 {[%clk 0:00:45]} 43... Qg4 {[%clk
0:00:09.2]} 44. Qxe5+ {[%clk 0:00:41.8]} 44... Kh7 {[%clk 0:00:09]} 45. Qe7+
{[%clk 0:00:37.7]} 45... Kh6 {[%clk 0:00:07.7]} 46. c7 {[%clk 0:00:32.3]} 46...
Qc4 {[%clk 0:00:05.1]} 47. Qc5 {[%clk 0:00:30.8]} 47... Qe4+ {[%clk 0:00:04.5]}
48. Kh2 {[%clk 0:00:30.8]} 48... h4 {[%clk 0:00:03.7]} 49. c8=Q {[%clk
0:00:25.3]} 49... hxg3+ {[%clk 0:00:04.6]} 50. fxg3 {[%clk 0:00:25.4]} 50...
Qe2+ {[%clk 0:00:04.2]} 51. Kh1 {[%clk 0:00:25.8]} 51... Qe1+ {[%clk 0:00:03.1]}
52. Qg1 {[%clk 0:00:24.6]} 52... Qe4+ {[%clk 0:00:03.2]} 53. Kh2 {[%clk
0:00:24.8]} 53... Qe2+ {[%clk 0:00:01.7]} 54. Qg2 {[%clk 0:00:24.6]} 1-0

[Event "*** Titled Tuesday Blitz"]
[Site "Chess.com"]
[Date "2021.02.09"]
[Round "7"]
[White "Michaelson_11"]
[Black "Rytenko_V"]
[Result "1-0"]
[WhiteElo "2286"]
[BlackElo "2413"]
[TimeControl "180+1"]
[EndTime "11:19:11 PST"]
[Termination "Michaelson_11 won by checkmate"]

1. e4 {[%clk 0:03:00.9]} 1... e6 {[%clk 0:02:57]} 2. d4 {[%clk 0:03:00]} 2... d5
{[%clk 0:02:57.9]} 3. Nc3 {[%clk 0:02:58.5]} 3... Bb4 {[%clk 0:02:57.6]} 4. e5
{[%clk 0:02:57.5]} 4... Ne7 {[%clk 0:02:57.7]} 5. a3 {[%clk 0:02:57]} 5... Bxc3+
{[%clk 0:02:57.8]} 6. bxc3 {[%clk 0:02:57.9]} 6... b6 {[%clk 0:02:58.5]} 7. Qg4
{[%clk 0:02:55.4]} 7... O-O {[%clk 0:02:58.2]} 8. Bd3 {[%clk 0:02:52]} 8... Ba6
{[%clk 0:02:57.2]} 9. Bh6 {[%clk 0:02:40.3]} 9... Ng6 {[%clk 0:02:41.6]} 10. Bg5
{[%clk 0:02:30.6]} 10... Qd7 {[%clk 0:02:33.3]} 11. h4 {[%clk 0:02:27.8]} 11...
Bxd3 {[%clk 0:02:32.1]} 12. cxd3 {[%clk 0:02:26]} 12... h6 {[%clk 0:01:20.3]}
13. Be3 {[%clk 0:01:53.8]} 13... Kh7 {[%clk 0:01:14.3]} 14. Nf3 {[%clk
0:01:40.9]} 14... c5 {[%clk 0:01:10.5]} 15. Rh3 {[%clk 0:01:30.2]} 15... f5
{[%clk 0:00:58.8]} 16. Qh5 {[%clk 0:01:16]} 16... Qe8 {[%clk 0:00:41.9]} 17. Rg3
{[%clk 0:00:23.5]} 17... Nh8 {[%clk 0:00:11.2]} 18. Ng5+ {[%clk 0:00:16.6]}
18... Kg8 {[%clk 0:00:11.5]} 19. Qxe8 {[%clk 0:00:08.8]} 19... Rxe8 {[%clk
0:00:11.6]} 20. Nh3 {[%clk 0:00:09.7]} 20... Kh7 {[%clk 0:00:06.3]} 21. Nf4
{[%clk 0:00:04.4]} 21... Nc6 {[%clk 0:00:05.3]} 22. dxc5 {[%clk 0:00:04]} 22...
bxc5 {[%clk 0:00:04.4]} 23. d4 {[%clk 0:00:04.5]} 23... cxd4 {[%clk 0:00:04.4]}
24. cxd4 {[%clk 0:00:05.3]} 24... Rac8 {[%clk 0:00:04.1]} 25. h5 {[%clk
0:00:05.2]} 25... Nf7 {[%clk 0:00:02.8]} 26. Kf1 {[%clk 0:00:02.7]} 26... Na5
{[%clk 0:00:03.2]} 27. Kg1 {[%clk 0:00:02.5]} 27... Ng5 {[%clk 0:00:03.3]} 28.
Rb1 {[%clk 0:00:02.7]} 28... Rc7 {[%clk 0:00:02.7]} 29. Rb5 {[%clk 0:00:02.8]}
29... Nc4 {[%clk 0:00:02.2]} 30. Nh3 {[%clk 0:00:02.9]} 30... Rec8 {[%clk
0:00:02.6]} 31. Nxg5+ {[%clk 0:00:02.9]} 31... hxg5 {[%clk 0:00:03.2]} 32. Bxg5
{[%clk 0:00:03.4]} 32... Nxa3 {[%clk 0:00:03.5]} 33. Rxa3 {[%clk 0:00:03.1]}
33... Rc1+ {[%clk 0:00:03]} 34. Bxc1 {[%clk 0:00:02.9]} 34... Rxc1+ {[%clk
0:00:03.9]} 35. Kh2 {[%clk 0:00:03.8]} 35... Rc7 {[%clk 0:00:04.6]} 36. Rba5
{[%clk 0:00:03.8]} 36... Kh6 {[%clk 0:00:05.5]} 37. Rxa7 {[%clk 0:00:04.2]}
37... Rc4 {[%clk 0:00:06.4]} 38. Rd7 {[%clk 0:00:04.3]} 38... Rxd4 {[%clk
0:00:06.7]} 39. Raa7 {[%clk 0:00:04.5]} 39... Kg5 {[%clk 0:00:06.4]} 40. Rxg7+
{[%clk 0:00:04.8]} 40... Kf4 {[%clk 0:00:07.3]} 41. Rg3 {[%clk 0:00:04.9]} 41...
Kxe5 {[%clk 0:00:07.5]} 42. h6 {[%clk 0:00:05.2]} 42... Rh4+ {[%clk 0:00:05]}
43. Rh3 {[%clk 0:00:05.6]} 43... Rxh6 {[%clk 0:00:04.9]} 44. Rxh6 {[%clk
0:00:05.6]} 44... d4 {[%clk 0:00:05.8]} 45. Re7 {[%clk 0:00:05.9]} 45... Kf4
{[%clk 0:00:06.2]} 46. Rhxe6 {[%clk 0:00:06.8]} 46... d3 {[%clk 0:00:07.1]} 47.
Rd6 {[%clk 0:00:07.1]} 47... d2 {[%clk 0:00:07.1]} 48. Rxd2 {[%clk 0:00:07.4]}
48... Kg4 {[%clk 0:00:07.3]} 49. g3 {[%clk 0:00:07.4]} 49... Kf3 {[%clk
0:00:07.1]} 50. Re4 {[%clk 0:00:07.6]} 50... f4 {[%clk 0:00:07]} 51. Rxf4#
{[%clk 0:00:07.6]} 1-0

[Event "*** Titled Tuesday Blitz"]
[Site "Chess.com"]
[Date "2021.02.09"]
[Round "7"]
[White "Alonmindlin"]
[Black "karinachess1"]
[Result "0-1"]
[WhiteElo "2671"]
[BlackElo "2531"]
[TimeControl "180+1"]
[EndTime "11:19:14 PST"]
[Termination "karinachess1 won by resignation"]

1. d4 {[%clk 0:03:00.8]} 1... Nf6 {[%clk 0:02:59.5]} 2. c4 {[%clk 0:03:00.5]}
2... e6 {[%clk 0:02:58.8]} 3. Nc3 {[%clk 0:02:58.6]} 3... d5 {[%clk 0:02:58.5]}
4. Nf3 {[%clk 0:02:58]} 4... Bb4 {[%clk 0:02:56.5]} 5. e3 {[%clk 0:02:56.5]}
5... O-O {[%clk 0:02:51.4]} 6. Bd3 {[%clk 0:02:56.5]} 6... c5 {[%clk 0:02:51]}
7. O-O {[%clk 0:02:56.2]} 7... Nc6 {[%clk 0:02:47.1]} 8. a3 {[%clk 0:02:55.9]}
8... Ba5 {[%clk 0:02:40.8]} 9. Rb1 {[%clk 0:02:40.4]} 9... cxd4 {[%clk
0:02:33.2]} 10. exd4 {[%clk 0:02:39.3]} 10... dxc4 {[%clk 0:02:21]} 11. Bxc4
{[%clk 0:02:40.2]} 11... h6 {[%clk 0:02:21.6]} 12. Be3 {[%clk 0:02:37.2]} 12...
Bc7 {[%clk 0:02:20]} 13. Re1 {[%clk 0:02:32.6]} 13... a6 {[%clk 0:02:17.8]} 14.
Rc1 {[%clk 0:02:27.4]} 14... b5 {[%clk 0:02:02.2]} 15. Ba2 {[%clk 0:02:26.7]}
15... Bb7 {[%clk 0:02:02]} 16. h3 {[%clk 0:02:25]} 16... Ne7 {[%clk 0:01:44.1]}
17. Bb1 {[%clk 0:02:22.3]} 17... Rc8 {[%clk 0:01:41.9]} 18. Ne5 {[%clk
0:02:18.6]} 18... Ned5 {[%clk 0:01:20.2]} 19. Ng4 {[%clk 0:02:05]} 19... Nxe3
{[%clk 0:01:07.6]} 20. fxe3 {[%clk 0:01:55.7]} 20... Nxg4 {[%clk 0:01:06.3]} 21.
Qxg4 {[%clk 0:01:55.2]} 21... Qd6 {[%clk 0:00:53.3]} 22. d5 {[%clk 0:01:17.1]}
22... exd5 {[%clk 0:00:39]} 23. Ne2 {[%clk 0:01:13.2]} 23... Bb6 {[%clk
0:00:17.8]} 24. Nd4 {[%clk 0:01:10.5]} 24... Rxc1 {[%clk 0:00:16.2]} 25. Rxc1
{[%clk 0:01:10.6]} 25... Qe5 {[%clk 0:00:16.5]} 26. Rc3 {[%clk 0:01:06.9]} 26...
Re8 {[%clk 0:00:14.9]} 27. Kf2 {[%clk 0:01:00.8]} 27... Qf6+ {[%clk 0:00:14.2]}
28. Kg1 {[%clk 0:00:59.8]} 28... g6 {[%clk 0:00:11]} 29. Kh2 {[%clk 0:00:42.7]}
29... h5 {[%clk 0:00:11]} 30. Qf3 {[%clk 0:00:38.4]} 30... Qxf3 {[%clk 0:00:10]}
31. gxf3 {[%clk 0:00:37.6]} 31... Kg7 {[%clk 0:00:10]} 32. Kg3 {[%clk
0:00:36.9]} 32... Re7 {[%clk 0:00:07.7]} 33. Kf2 {[%clk 0:00:37]} 33... h4
{[%clk 0:00:07]} 34. b4 {[%clk 0:00:35.9]} 34... Rc7 {[%clk 0:00:07.2]} 35. Rxc7
{[%clk 0:00:35.4]} 35... Bxc7 {[%clk 0:00:08.1]} 36. Nb3 {[%clk 0:00:36]} 36...
Bc8 {[%clk 0:00:07.7]} 37. Kg2 {[%clk 0:00:34.8]} 37... Kf6 {[%clk 0:00:07.9]}
38. Nc5 {[%clk 0:00:34.1]} 38... Ke5 {[%clk 0:00:08.2]} 39. Ba2 {[%clk 0:00:33]}
39... Kd6 {[%clk 0:00:07.6]} 40. f4 {[%clk 0:00:33]} 40... f6 {[%clk 0:00:07.3]}
41. Bb1 {[%clk 0:00:32.5]} 41... g5 {[%clk 0:00:07.1]} 42. Ba2 {[%clk
0:00:30.9]} 42... Bb6 {[%clk 0:00:07.1]} 43. fxg5 {[%clk 0:00:23.1]} 43... fxg5
{[%clk 0:00:08]} 44. e4 {[%clk 0:00:20.6]} 44... Bxc5 {[%clk 0:00:07.5]} 45.
bxc5+ {[%clk 0:00:21.1]} 45... Kxc5 {[%clk 0:00:07.9]} 46. Bxd5 {[%clk
0:00:21.3]} 46... a5 {[%clk 0:00:07.1]} 47. Ba2 {[%clk 0:00:21.3]} 47... b4
{[%clk 0:00:07.5]} 48. axb4+ {[%clk 0:00:22.2]} 48... axb4 {[%clk 0:00:08.4]}
49. e5 {[%clk 0:00:22]} 49... Bb7+ {[%clk 0:00:04.3]} 50. Kf2 {[%clk 0:00:22]}
50... Bd5 {[%clk 0:00:05.2]} 51. e6 {[%clk 0:00:21.1]} 51... Bxa2 {[%clk
0:00:05]} 52. e7 {[%clk 0:00:21.2]} 52... Bf7 {[%clk 0:00:05.7]} 0-1